Workbook

Sheet Note Balance
C1: TOTAL NOTE BALANCES
D2: Total Notes | E2: Class A1 Notes | F2: Class A2 Notes | G2: Class B Notes | H2: Class C Notes
C3: Initial Invested Amount | D3: 450000000 | E3: 122000000 | F3: 272200000 | G3: 13500000 | H3: 9900000
C4: Invested Amount as at Previous Payment Date: 17 August 2017 | D4: 450000000 | E4: 122000000 | F4: 272200000 | G4: 13500000 | H4: 9900000
C5: Stated Amount as at Previous Payment Date: 17 August 2017 | D5: 450000000 | E5: 122000000 | F5: 272200000 | G5: 13500000 | H5: 9900000
C6: Principal Payments to Noteholders on Payment Date | D6: 36788093.09 | E6: 36788093.09 | F6: 0 | G6: 0 | H6: 0
C7: Gross Aggregate Charge-Offs | D7: 0 | E7: 0 | F7: 0 | G7: 0 | H7: 0
C8: Gross Aggregate Reinstatements of charge-offs | D8: 0 | E8: 0 | F8: 0 | G8: 0 | H8: 0
C9: Aggregate Charge-Offs for this Collection Period | D9: 0 | E9: 0 | F9: 0 | G9: 0 | H9: 0
C10: Reinstatements relating to Charge-offs that have occurred this Collection Period | D10: 0 | E10: 0 | F10: 0 | G10: 0 | H10: 0
C11: Aggregate Carry Over Charge-offs not previously reinstated | D11: 0 | E11: 0 | F11: 0 | G11: 0 | H11: 0
C12: Reinstatements of Carry Over Charge-offs not previously reinstated | D12: 0 | E12: 0 | F12: 0 | G12: 0 | H12: 0
C13: Aggregate Charge-Offs not reinstated and to be carried over to next period | D13: 0 | E13: 0 | F13: 0 | G13: 0 | H13: 0
C14: Invested Amount as at Payment Date: 16 November 2017 | D14: 413211906.9 | E14: 85211906.91 | F14: 272200000 | G14: 13500000 | H14: 9900000
C15: Stated Amount as at Payment Date: 16 November 2017 | D15: 413211906.9 | E15: 85211906.91 | F15: 272200000 | G15: 13500000 | H15: 9900000
C16: Bond Factor at Payment Date: 16 November 2017 | E16: 0.6984582534 | F16: 1 | G16: 1 | H16: 1
C17: Coupon Margin | E17: 0.0058 | F17: 0.0093 | G17: 0.017 | H17: 0.023
C18: Coupon Rate (3 month BBSW + margin) | E18: 0.02275 | F18: 0.02625 | G18: 0.03395 | H18: 0.03995
C19: Days in Coupon Period | E19: 91 | F19: 91 | G19: 91 | H19: 91
C20: Coupon Entitlement to be paid out on the current Payment Date: 16 November 2017 | E20: 691973.97 | F20: 1781418.49 | G20: 114267.33 | H20: 98605.36

Sheet Cumulative Defaults
A1: Cumulative Defaults & Losses
A3: Month | B3: Gross Losses | C3: Recoveries | D3: Net Losses
A4: 2017-10-01 | B4: ='Collateral Tables '!E9/450000000 -> 0 | C4: ='Collateral Tables '!E23/450000000 -> 0 | D4: =B4-C4 -> 0
A5: 2018-01-01
A6: 2018-04-01
A7: 2018-07-01
A8: 2018-10-01

Sheet Collateral Tables
B1: CNHI CAPITAL AUSTRALIA RECEIVABLES TRUST SERIES 2017-1 (TERM DEAL)
B2: COLLATERAL DATA TABLES
B4: OUTSTANDING RECEIVABLES | E4: 2017-10-31
B6: Opening Balance | E6: 449999902.8
B7: Principal Repayments - Scheduled | E7: =MIN('[1]16 Nov 17'!$H23,SUM([2]Sheet1!$B$3+[2]Sheet1!$B$4+[2]Sheet1!$B$5+[2]Sheet1!$B$6)) -> 29068086
B8: Principal Repayments - Unscheduled | E8: =MAX('[1]16 Nov 17'!H23-'Collateral Tables '!E7,0) -> 7719909.93
A9: =SUM(E9) -> 0 | B9: Charge-Offs | E9: ='[1]16 Nov 17'!$H37 -> 0
B10: Reinstatements
B11: New Receivables Purchased
B12: Non Cash Change in Receivables
B13: Closing Balance | E13: =E6-E7-E8-E9+E10+E11-E12 -> 413211906.9
B15: PORTFOLIO STATISTICS
B17: Summary
B18: Number of contracts | E18: =[3]Summary!$D$4 -> 4356
B19: Dollar value of contracts | E19: =[3]Summary!$D$6 -> 94860.40104
B20: Number of contracts closed during the Quarter | E20: =[3]Summary!$B$19 -> 259
B21: Dollar value of contracts closed during the Quarter | E21: =[3]Summary!$B$20 -> 11324349.98
A23: =SUM(E23) -> 0 | B23: Dollar Value of Recoveries from Collateral | E23: =[3]Summary!$C$16 -> 0
B24: Dollar Value of Recoveries from Other Sources | E24: 0
B26: Average Term of Contracts (Months) | E26: =[4]Sheet1!$W$4358 -> 52.79114283
B27: Average Term to Maturity (Months) | E27: =[4]Sheet1!$X$4358 -> 35.24800546
B28: Average Residual / Balloon Payment * | E28: =[4]Sheet1!$AI$4358 -> 0.03188383595
B29: Average Seasoning (Months) | E29: =E26-E27 -> 17.54313737
B30: Average Dollar Value of Individual Assets | E30: =E19/E18 -> 21.77695157
B31: Weighted Average Interest Rate | E31: =[4]Sheet1!$AA$4358/100 -> 0.02722418735
B33: Payment in Arrears
A34: 1. 0 - 30 Days | B34: 0 - 30 Days | E34: =IFERROR(VLOOKUP($A34,'[5]Arrears Reporting'!$A$1:$D$6,3,FALSE),0) -> 4347 | F34: =IFERROR(VLOOKUP($A34,'[5]Arrears Reporting'!$A$1:$D$5,2,FALSE),0) -> 271017.79 | G34: =F34/F$50 -> 0.0006558808821
A35: 2. 31 - 60 Days | B35: 31 - 60 Days | E35: =IFERROR(VLOOKUP($A35,'[5]Arrears Reporting'!$A$1:$D$6,3,FALSE),0) -> 5 | F35: =IFERROR(VLOOKUP($A35,'[5]Arrears Reporting'!$A$1:$D$5,2,FALSE),0) -> 35820.54 | G35: =F35/F$50 -> 8.668806344e-05
A36: 3. 61 - 90 Days | B36: 61 - 90 Days | E36: =IFERROR(VLOOKUP($A36,'[5]Arrears Reporting'!$A$1:$D$6,3,FALSE),0) -> 2 | F36: =IFERROR(VLOOKUP($A36,'[5]Arrears Reporting'!$A$1:$D$5,2,FALSE),0) -> 107243.4 | G36: 0.0002595360836
A37: 4. 91 - 120 Days | B37: 91 - 120 Days | E37: =IFERROR(VLOOKUP($A37,'[5]Arrears Reporting'!$A$1:$D$6,3,FALSE),0) -> 1 | F37: =IFERROR(VLOOKUP($A37,'[5]Arrears Reporting'!$A$1:$D$5,2,FALSE),0) -> 25089.71 | G37: 6.071874886e-05
A38: 5. 121 - 150 Days | B38: 121 - 150 Days | E38: =IFERROR(VLOOKUP($A38,'[5]Arrears Reporting'!$A$1:$D$6,3,FALSE),0) -> 1 | F38: =IFERROR(VLOOKUP($A38,'[5]Arrears Reporting'!$A$1:$D$5,2,FALSE),0) -> 0 | G38: 0
A39: 6. 151 - 180 Days | B39: 151 - 180 Days | E39: =IFERROR(VLOOKUP($A39,'[5]Arrears Reporting'!$A$1:$D$6,3,FALSE),0) -> 0 | F39: =IFERROR(VLOOKUP($A39,'[5]Arrears Reporting'!$A$1:$D$5,2,FALSE),0) -> 0 | G39: 0
B40: Total | E40: =SUM(E34:E39) -> 4356 | F40: =SUM(F34:F39) -> 439171.44 | G40: =SUM(G34:G39) -> 0.001062823778
B41: * Expressed as a % of Aggreg. Rec. closing bal. | F41: > 30 days | G41: =SUM(G35:G39) -> 0.0004069428959
A43: 0 - 30 Days | B43: Account Balances in Arrears
A44: 1. 0 - 30 Days | B44: 0 - 30 Days | E44: =IFERROR(VLOOKUP($A44,'[5]Arrears Reporting'!$A$1:$D$6,3,FALSE),0) -> 4347 | F44: =IFERROR(VLOOKUP($A44,'[5]Arrears Reporting'!$A$1:$D$6,4,FALSE),0) -> 412348242.5 | G44: =F44/F$50 -> 0.9979098754
A45: 2. 31 - 60 Days | B45: 31 - 60 Days | E45: =IFERROR(VLOOKUP($A45,'[5]Arrears Reporting'!$A$1:$D$6,3,FALSE),0) -> 5 | F45: =IFERROR(VLOOKUP($A45,'[5]Arrears Reporting'!$A$1:$D$6,4,FALSE),0) -> 283384.2 | G45: =F45/F$50 -> 0.0006858084079
A46: 3. 61 - 90 Days | B46: 61 - 90 Days | E46: =IFERROR(VLOOKUP($A46,'[5]Arrears Reporting'!$A$1:$D$6,3,FALSE),0) -> 2 | F46: =IFERROR(VLOOKUP($A46,'[5]Arrears Reporting'!$A$1:$D$6,4,FALSE),0) -> 207466.89 | G46: 0.0005020835231
A47: 4. 91 - 120 Days | B47: 91 - 120 Days | E47: =IFERROR(VLOOKUP($A47,'[5]Arrears Reporting'!$A$1:$D$6,3,FALSE),0) -> 1 | F47: =IFERROR(VLOOKUP($A47,'[5]Arrears Reporting'!$A$1:$D$6,4,FALSE),0) -> 356437.59 | G47: =F47/F$50 -> 0.0008626024179
A48: 5. 121 - 150 Days | B48: 121 - 150 Days | E48: =IFERROR(VLOOKUP($A48,'[5]Arrears Reporting'!$A$1:$D$6,3,FALSE),0) -> 1 | F48: =IFERROR(VLOOKUP($A48,'[5]Arrears Reporting'!$A$1:$D$6,4,FALSE),0) -> 16375.7 | G48: =F48/F$50 -> 3.963027136e-05
A49: 6. 151 - 180 Days | B49: 151 - 180 Days | E49: =IFERROR(VLOOKUP($A49,'[5]Arrears Reporting'!$A$1:$D$6,3,FALSE),0) -> 0 | F49: =IFERROR(VLOOKUP($A49,'[5]Arrears Reporting'!$A$1:$D$6,4,FALSE),0) -> 0 | G49: =F49/F$50 -> 0
B50: Total | E50: =SUM(E44:E49) -> 4356 | F50: =SUM(F44:F49) -> 413211906.9 | G50: =SUM(G44:G49) -> 1
A51: NSW | F51: > 30 days | G51: =SUM(G45:G49) -> 0.00209012462
F52: >90 days | G52: =SUM(G47:G49) -> 0.0009022326892
A54: VIC | B54: Geographic Distribution
A55: NSW | B55: New South Wales | E55: =F55/F$63 -> 0.3319563742 | F55: =IFERROR(VLOOKUP($A$55,'[5]Geographic '!$A$1:$C$10,3,FALSE),0) -> 137168326.4
A56: VIC | B56: Victoria | E56: =F56/F$63 -> 0.1590432108 | F56: =IFERROR(VLOOKUP($A$56,'[5]Geographic '!$A$1:$C$10,3,FALSE),0) -> 65718548.41
A57: QLD | B57: Queensland | E57: 0.1105964505 | F57: =IFERROR(VLOOKUP($A$57,'[5]Geographic '!$A$1:$C$10,3,FALSE),0) -> 45699770.19
A58: SA | B58: South Australia | E58: 0.182358128 | F58: =IFERROR(VLOOKUP($A$58,'[5]Geographic '!$A$1:$C$10,3,FALSE),0) -> 75352549.8
A59: NT | B59: Northern Territory | E59: 0.0008068516285 | F59: =IFERROR(VLOOKUP($A$59,'[5]Geographic '!$A$1:$C$10,3,FALSE),0) -> 333400.7
A60: ACT | B60: Australian Capital Territory | E60: 0.000342650339 | F60: =IFERROR(VLOOKUP($A$60,'[5]Geographic '!$A$1:$C$10,3,FALSE),0) -> 141587.2
A61: TAS | B61: Tasmania | E61: 0.00930744629 | F61: =IFERROR(VLOOKUP($A$61,'[5]Geographic '!$A$1:$C$10,3,FALSE),0) -> 3845947.63
A62: WA | B62: Western Australia | E62: 0.2055888883 | F62: =IFERROR(VLOOKUP($A$62,'[5]Geographic '!$A$1:$C$10,3,FALSE),0) -> 84951776.59
B63: Total | E63: =SUM(E55:E62) -> 1 | F63: =SUM(F55:F62) -> 413211906.9
A64: AG | G64: =E13-F63 -> 0
A65: CE | B65: Top Industry Distribution
A66: AGRICULTURAL MACHINERY | B66: Agricultural | E66: =F66/F$69 -> 0.9626324307 | F66: =IFERROR(VLOOKUP($A$66,'[5]Top Industry'!$A$1:$C$5,3,FALSE),) -> 397771182.3
A67: CONSTRUCTION EQUIPMENT | B67: Construction | E67: =F67/F$69 -> 0.03736756933 | F67: =IFERROR(VLOOKUP($A$67,'[5]Top Industry'!$A$1:$C$5,3,FALSE),) -> 15440724.58
A68: MOTOR VEHICLE - AG | B68: Motor Vehicle AG | E68: =F68/F$69 -> 0 | F68: =IFERROR(VLOOKUP($A$68,'[5]Top Industry'!$A$1:$C$5,3,FALSE),) -> 0
B69: Total | E69: =SUM(E66:E68) -> 1 | F69: =SUM(F66:F68) -> 413211906.9 | G69: =F63-F69 -> -4.768371582e-07
A70: COMBINE
A71: 40-100 HP TRACTOR | B71: Collateral Types
A72: 100<140 HP TRACTOR | B72: 100<140 HP TRACTOR | E72: =IFERROR(F72/F$101,0) -> 0.0962411397 | F72: =IFERROR(VLOOKUP($A$72,[5]Collateral!$A$1:$C$30,3,FALSE),"") -> 39767984.86
A73: 4 EWD TRACTORS | B73: 4 EWD TRACTORS | E73: 0.1026798972 | F73: =IFERROR(VLOOKUP($A$73,[5]Collateral!$A$1:$C$30,3,FALSE),"") -> 42428556.11
A74: 40<60 HP TRACTOR | B74: 40<60 HP TRACTOR | E74: 0.009495512652 | F74: =IFERROR(VLOOKUP($A$74,[5]Collateral!$A$1:$C$30,3,FALSE),"") -> 3923658.89
A75: 4WD Vehicle | B75: 4WD Vehicle | E75: 0.0004068503525 | F75: =IFERROR(VLOOKUP($A$75,[5]Collateral!$A$1:$C$30,3,FALSE),"") -> 168115.41
A76: 60<100 HP TRACTOR | B76: 60<100 HP TRACTOR | E76: 0.05543760934 | F76: =IFERROR(VLOOKUP($A$76,[5]Collateral!$A$1:$C$30,3,FALSE),"") -> 22907480.27
A77: BACKHOE | B77: BACKHOE | E77: 0.001125797157 | F77: =IFERROR(VLOOKUP($A$77,[5]Collateral!$A$1:$C$30,3,FALSE),"") -> 465192.79
A78: BALERS, WINDROWERS, MOWERS, RAKES | B78: BALERS, WINDROWERS, MOWERS, RAKES | E78: 0.03148194665 | F78: =IFERROR(VLOOKUP($A$78,[5]Collateral!$A$1:$C$30,3,FALSE),"") -> 13008715.21
A79: COMBINES | B79: COMBINES | E79: 0.3237472107 | F79: =IFERROR(VLOOKUP($A$79,[5]Collateral!$A$1:$C$30,3,FALSE),"") -> 133776202.3
A80: COMPACT TRACK LOADER | B80: COMPACT TRACK LOADER | E80: 0.0002552106032 | F80: =IFERROR(VLOOKUP($A$80,[5]Collateral!$A$1:$C$30,3,FALSE),"") -> 105456.06
A81: CRAWLER DOZER | B81: CRAWLER DOZER | E81: 0.0008488886795 | F81: =IFERROR(VLOOKUP($A$81,[5]Collateral!$A$1:$C$30,3,FALSE),"") -> 350770.91
A82: CULTIVATORS,SEEDERS, HARROWS | B82: CULTIVATORS,SEEDERS, HARROWS | E82: 0.01754794886 | F82: =IFERROR(VLOOKUP($A$82,[5]Collateral!$A$1:$C$30,3,FALSE),"") -> 7251021.41
A83: DRILL | B83: DRILL | E83: 0.0007892780061 | F83: =IFERROR(VLOOKUP($A$83,[5]Collateral!$A$1:$C$30,3,FALSE),"") -> 326139.07
A84: EXCAVATORS / GRADERS | B84: EXCAVATORS / GRADERS | E84: 0.01771205688 | F84: =IFERROR(VLOOKUP($A$84,[5]Collateral!$A$1:$C$30,3,FALSE),"") -> 7318832.8
A85: FEEDERS, MIXERS, WAGONS, BINS, FEED STORAGE | B85: FEEDERS, MIXERS, WAGONS, BINS, FEED STORAGE | E85: 0.0001532127437 | F85: =IFERROR(VLOOKUP($A$85,[5]Collateral!$A$1:$C$30,3,FALSE),"") -> 63309.33
A86: FRONT END LOADER | B86: FRONT END LOADER | E86: 0.0007709344641 | F86: =IFERROR(VLOOKUP($A$86,[5]Collateral!$A$1:$C$30,3,FALSE),"") -> 318559.3
A87: FRONTS | B87: FRONTS | E87: 0.005036028864 | F87: =IFERROR(VLOOKUP($A$87,[5]Collateral!$A$1:$C$30,3,FALSE),"") -> 2080947.09
A88: HARVESTERS - Other | B88: HARVESTERS - Other | E88: 0.003451433843 | F88: =IFERROR(VLOOKUP($A$88,[5]Collateral!$A$1:$C$30,3,FALSE),"") -> 1426173.56
A89: IRRIGATION EQUIPMENT | B89: IRRIGATION EQUIPMENT | E89: 0.0002623505233 | F89: =IFERROR(VLOOKUP($A$89,[5]Collateral!$A$1:$C$30,3,FALSE),"") -> 108406.36
A90: MATERIALS HANDLING EQUIPMENT | B90: MATERIALS HANDLING EQUIPMENT | E90: 0.0001040854082 | F90: =IFERROR(VLOOKUP($A$90,[5]Collateral!$A$1:$C$30,3,FALSE),"") -> 43009.33
A91: MINI EXCAVATOR | B91: MINI EXCAVATOR | E91: 0.0003519453761 | F91: =IFERROR(VLOOKUP($A$91,[5]Collateral!$A$1:$C$30,3,FALSE),"") -> 145428.02
A92: OTHER AG | B92: OTHER AG | E92: 0.006314017134 | F92: =IFERROR(VLOOKUP($A$92,[5]Collateral!$A$1:$C$30,3,FALSE),"") -> 2609027.06
A93: OTHER CE | B93: OTHER CE | E93: 0.000928037391 | F93: =IFERROR(VLOOKUP($A$93,[5]Collateral!$A$1:$C$30,3,FALSE),"") -> 383476.1
A94: OVER 140 HP TRACTOR | B94: OVER 140 HP TRACTOR | E94: 0.2270645207 | F94: =IFERROR(VLOOKUP($A$94,[5]Collateral!$A$1:$C$30,3,FALSE),"") -> 93825763.59
A95: SKID STEER LOADER | B95: SKID STEER LOADER | E95: 8.644281397e-05 | F95: =IFERROR(VLOOKUP($A$95,[5]Collateral!$A$1:$C$30,3,FALSE),"") -> 35719.2
A96: SKIDSTEER / UNILOADER | B96: SKIDSTEER / UNILOADER | E96: 0.01290642235 | F96: =IFERROR(VLOOKUP($A$96,[5]Collateral!$A$1:$C$30,3,FALSE),"") -> 5333087.39
A97: SPRAYING EQUIPMENT | B97: SPRAYING EQUIPMENT | E97: 0.08029680451 | F97: =IFERROR(VLOOKUP($A$97,[5]Collateral!$A$1:$C$30,3,FALSE),"") -> 33179595.71
A98: UNDER 40 HP TRACTORS | B98: UNDER 40 HP TRACTORS | E98: 0.001436837637 | F98: =IFERROR(VLOOKUP($A$98,[5]Collateral!$A$1:$C$30,3,FALSE),"") -> 593718.42
A99: WHEEL LOADERS (OLD) | B99: WHEEL LOADERS (OLD) | E99: 0.003048682671 | F99: =IFERROR(VLOOKUP($A$99,[5]Collateral!$A$1:$C$30,3,FALSE),"") -> 1259751.98
A100: zzDo Not Use Z OVER 100 HP TRACTORS | B100: Under 100 HP TRACTORS | E100: 1.889679331e-05 | F100: =IFERROR(VLOOKUP($A$100,[5]Collateral!$A$1:$C$30,3,FALSE),"") -> 7808.38
B101: Total | E101: =SUM(E72:E100) -> 1 | F101: =SUM(F72:F100) -> 413211906.9 | G101: =F69-F101 -> 0
A102: $ 0 - $25,000
A103: $ 25,001 to $50,000 | B103: Contract Balance Distribution
A104: $0 - $25,000 | B104: $ 0 - $25,000 | E104: =IFERROR(F104/F$115,0) -> 0.03835880962 | F104: =IFERROR(VLOOKUP($A104,'[5] Balance Distribution'!$A$1:$C$13,3,FALSE),"") -> 15850316.87
A105: $25,001 - $50,000 | B105: $ 25,001 to $50,000 | E105: =IFERROR(F105/F$115,0) -> 0.08671347062 | F105: =IFERROR(VLOOKUP($A105,'[5] Balance Distribution'!$A$1:$C$13,3,FALSE),"") -> 35831038.55
A106: $50,001 - $75,000 | B106: $ 50,001 to $75,000 | E106: 0.08319588418 | F106: =IFERROR(VLOOKUP($A106,'[5] Balance Distribution'!$A$1:$C$13,3,FALSE),"") -> 34377529.95
A107: $75,001 - $100,000 | B107: $ 75,001 to $100,000 | E107: 0.07962980287 | F107: =IFERROR(VLOOKUP($A107,'[5] Balance Distribution'!$A$1:$C$13,3,FALSE),"") -> 32903982.69
A108: $100,001 - $125,000 | B108: $100,001 to $125,000 | E108: 0.06404050389 | F108: =IFERROR(VLOOKUP($A108,'[5] Balance Distribution'!$A$1:$C$13,3,FALSE),"") -> 26462298.73
A109: $125,001 - $150,000 | B109: $125,001 to $150,000 | E109: 0.05245439915 | F109: =IFERROR(VLOOKUP($A109,'[5] Balance Distribution'!$A$1:$C$13,3,FALSE),"") -> 21674782.3
A110: $150,001 - $200,000 | B110: $150,000 to $200,000 | E110: 0.1200395477 | F110: =IFERROR(VLOOKUP($A110,'[5] Balance Distribution'!$A$1:$C$13,3,FALSE),"") -> 49601770.39
A111: $200,001 - $300,000 | B111: $200,001 to $300,000 | E111: 0.226018903 | F111: =IFERROR(VLOOKUP($A111,'[5] Balance Distribution'!$A$1:$C$13,3,FALSE),"") -> 93393701.9
A112: $300,001 - $400,000 | B112: $300,001 to $400,000 | E112: 0.142340782 | F112: =IFERROR(VLOOKUP($A112,'[5] Balance Distribution'!$A$1:$C$13,3,FALSE),"") -> 58816905.97
A113: $400,001 - $500,000 | B113: $400,001 to $500,000 | E113: 0.0613290379 | F113: =IFERROR(VLOOKUP($A113,'[5] Balance Distribution'!$A$1:$C$13,3,FALSE),"") -> 25341888.7
A114: $500,001+ | B114: $500,000+ | E114: 0.04587885911 | F114: =IFERROR(VLOOKUP($A114,'[5] Balance Distribution'!$A$1:$C$13,3,FALSE),"") -> 18957690.86
A115: $200,001 to $300,000 | B115: Total | E115: =SUM(E104:E114) -> 1 | F115: =SUM(F104:F114) -> 413211906.9 | G115: =F101-F115 -> 0
A116: 0
A117: 0 to 5 | B117: Residual / Balloon Payment Distribution
A118: 0 | B118: 0 | E118: =IFERROR(F118/F$128,0) -> 0.8894640862 | F118: =IFERROR(VLOOKUP(A118,'[5]Residual '!$A$1:$C$11,3,FALSE),"") -> 367537151.2
A119: 0 to 5 | B119: 0 to 5 | E119: =IFERROR(F119/F$128,0) -> 0.001025028037 | F119: =IFERROR(VLOOKUP(A119,'[5]Residual '!$A$1:$C$11,3,FALSE),"") -> 423553.79
A120: 6 to 10 | B120: 06 to 10 | E120: 0.001495263858 | F120: =IFERROR(VLOOKUP(A120,'[5]Residual '!$A$1:$C$11,3,FALSE),"") -> 617860.83
A121: 11 to 15 | B121: 11 to 15 | E121: 0.007282209877 | F121: =IFERROR(VLOOKUP(A121,'[5]Residual '!$A$1:$C$11,3,FALSE),"") -> 3009095.83
A122: 16 to 20 | B122: 16 to 20 | E122: 0.01256792007 | F122: =IFERROR(VLOOKUP(A122,'[5]Residual '!$A$1:$C$11,3,FALSE),"") -> 5193214.22
A123: 21 to 25 | B123: 21 to 25 | E123: 0.0180290856 | F123: =IFERROR(VLOOKUP(A123,'[5]Residual '!$A$1:$C$11,3,FALSE),"") -> 7449832.84
A124: 26 to 30 | B124: 26 to 30 | E124: 0.02974943116 | F124: =IFERROR(VLOOKUP(A124,'[5]Residual '!$A$1:$C$11,3,FALSE),"") -> 12292819.18
A125: 31 to 35 | B125: 31 to 35 | E125: 0.01304897993 | F125: =IFERROR(VLOOKUP(A125,'[5]Residual '!$A$1:$C$11,3,FALSE),"") -> 5391993.88
A126: 36 to 40 | B126: 36 to 40 | E126: 0.01994886757 | F126: =IFERROR(VLOOKUP(A126,'[5]Residual '!$A$1:$C$11,3,FALSE),"") -> 8243109.61
A127: 41+ % | B127: 41+% | E127: 0.007389127706 | F127: =IFERROR(VLOOKUP(A127,'[5]Residual '!$A$1:$C$11,3,FALSE),"") -> 3053275.55
E128: =SUM(E118:E127) -> 1 | F128: =SUM(F118:F127) -> 413211906.9 | G128: =F115-F128 -> -8.940696716e-07
A129: 2004 Q1
A130: 2004 Q2 | B130: Quarter of Maturity Distribution
A131: =RIGHT(B131,2)&LEFT(B131,4) -> Q12017 | B131: 2017Q1 | E131: =F131/F$160 -> 0 | F131: =IFERROR(VLOOKUP(A131,'[5]Quarter of Maturity Dist'!$A$1:$C$22,3,FALSE),0) -> 0
A132: Q22017 | B132: 2017Q2 | E132: 0 | F132: =IFERROR(VLOOKUP(A132,'[5]Quarter of Maturity Dist'!$A$1:$C$22,3,FALSE),0) -> 0
A133: =RIGHT(B133,2)&LEFT(B133,4) -> Q32017 | B133: 2017Q3 | E133: 0 | F133: =IFERROR(VLOOKUP(A133,'[5]Quarter of Maturity Dist'!$A$1:$C$22,3,FALSE),0) -> 0
A134: =RIGHT(B134,2)&LEFT(B134,4) -> Q42017 | B134: 2017Q4 | E134: 0.003945455038 | F134: =IFERROR(VLOOKUP(A134,'[5]Quarter of Maturity Dist'!$A$1:$C$22,3,FALSE),0) -> 1630309
A135: Q12018 | B135: 2018Q1 | E135: 0.01991999631 | F135: =IFERROR(VLOOKUP(A135,'[5]Quarter of Maturity Dist'!$A$1:$C$22,3,FALSE),0) -> 8231179.66
A136: Q22018 | B136: 2018Q2 | E136: 0.007131838218 | F136: =IFERROR(VLOOKUP(A136,'[5]Quarter of Maturity Dist'!$A$1:$C$22,3,FALSE),0) -> 2946960.47
A137: Q32018 | B137: 2018Q3 | E137: 0.009338324466 | F137: =IFERROR(VLOOKUP(A137,'[5]Quarter of Maturity Dist'!$A$1:$C$22,3,FALSE),0) -> 3858706.86
A138: Q42018 | B138: 2018Q4 | E138: 0.02031692955 | F138: =IFERROR(VLOOKUP(A138,'[5]Quarter of Maturity Dist'!$A$1:$C$22,3,FALSE),0) -> 8395197.2
A139: Q12019 | B139: 2019Q1 | E139: 0.04936511642 | F139: =IFERROR(VLOOKUP(A139,'[5]Quarter of Maturity Dist'!$A$1:$C$22,3,FALSE),0) -> 20398253.89
A140: Q22019 | B140: 2019Q2 | E140: 0.02511903134 | F140: =IFERROR(VLOOKUP(A140,'[5]Quarter of Maturity Dist'!$A$1:$C$22,3,FALSE),0) -> 10379482.84
A141: Q32019 | B141: 2019Q3 | E141: 0.03136783462 | F141: =IFERROR(VLOOKUP(A141,'[5]Quarter of Maturity Dist'!$A$1:$C$22,3,FALSE),0) -> 12961562.76
A142: Q42019 | B142: 2019Q4 | E142: 0.04999752351 | F142: =IFERROR(VLOOKUP(A142,'[5]Quarter of Maturity Dist'!$A$1:$C$22,3,FALSE),0) -> 20659572.03
A143: Q12020 | B143: 2020Q1 | E143: 0.1117071704 | F143: =IFERROR(VLOOKUP(A143,'[5]Quarter of Maturity Dist'!$A$1:$C$22,3,FALSE),0) -> 46158732.89
A144: Q22020 | B144: 2020Q2 | E144: 0.04909839581 | F144: =IFERROR(VLOOKUP(A144,'[5]Quarter of Maturity Dist'!$A$1:$C$22,3,FALSE),0) -> 20288041.76
A145: Q32020 | B145: 2020Q3 | E145: 0.0300049095 | F145: =IFERROR(VLOOKUP(A145,'[5]Quarter of Maturity Dist'!$A$1:$C$22,3,FALSE),0) -> 12398385.87
A146: Q42020 | B146: 2020Q4 | E146: 0.05589905756 | F146: =IFERROR(VLOOKUP(A146,'[5]Quarter of Maturity Dist'!$A$1:$C$22,3,FALSE),0) -> 23098156.17
A147: Q12021 | B147: 2021Q1 | E147: 0.2103707266 | F147: =IFERROR(VLOOKUP(A147,'[5]Quarter of Maturity Dist'!$A$1:$C$22,3,FALSE),0) -> 86927689.11
A148: Q22021 | B148: 2021Q2 | E148: 0.08705164377 | F148: =IFERROR(VLOOKUP(A148,'[5]Quarter of Maturity Dist'!$A$1:$C$22,3,FALSE),0) -> 35970775.72
A149: Q32021 | B149: 2021Q3 | E149: 0.06262896005 | F149: =IFERROR(VLOOKUP(A149,'[5]Quarter of Maturity Dist'!$A$1:$C$22,3,FALSE),0) -> 25879032.01
A150: Q42021 | B150: 2021Q4 | E150: 0.07427272067 | F150: =IFERROR(VLOOKUP(A150,'[5]Quarter of Maturity Dist'!$A$1:$C$22,3,FALSE),0) -> 30690372.54
A151: Q12022 | B151: 2022Q1 | E151: 0.09570889514 | F151: =IFERROR(VLOOKUP(A151,'[5]Quarter of Maturity Dist'!$A$1:$C$22,3,FALSE),0) -> 39548055.07
A152: Q22022 | B152: 2022Q2 | E152: 0.001833172514 | F152: =IFERROR(VLOOKUP(A152,'[5]Quarter of Maturity Dist'!$A$1:$C$22,3,FALSE),0) -> 757488.71
A153: Q32022 | B153: 2022Q3 | E153: 0.00279221707 | F153: =IFERROR(VLOOKUP(A153,'[5]Quarter of Maturity Dist'!$A$1:$C$22,3,FALSE),0) -> 1153777.34
A154: Q42022 | B154: 2022Q4 | E154: 0.002130081431 | F154: =IFERROR(VLOOKUP(A154,'[5]Quarter of Maturity Dist'!$A$1:$C$22,3,FALSE),0) -> 880175.01
A155: Q12023 | B155: 2023Q1 | E155: 0 | F155: =IFERROR(VLOOKUP(A155,'[5]Quarter of Maturity Dist'!$A$1:$C$22,3,FALSE),0) -> 0
A156: Q22023 | B156: 2023Q2 | E156: 0 | F156: =IFERROR(VLOOKUP(A156,'[5]Quarter of Maturity Dist'!$A$1:$C$22,3,FALSE),0) -> 0
A157: Q32023 | B157: 2023Q3 | E157: 0 | F157: =IFERROR(VLOOKUP(A157,'[5]Quarter of Maturity Dist'!$A$1:$C$22,3,FALSE),0) -> 0
A158: Q42023 | B158: 2023Q4 | E158: 0 | F158: =IFERROR(VLOOKUP(A158,'[5]Quarter of Maturity Dist'!$A$1:$C$22,3,FALSE),0) -> 0
E160: =SUM(E131:E158) -> 1 | F160: =SUM(F131:F159) -> 413211906.9 | G160: =F128-F160 -> 8.940696716e-07
A161: 0 to 6 months
A162: 07 to 12 months | B162: Seasoning Distribution
A163: 0 to 6 months | B163: 0 to 6 months | E163: =F163/F$174 -> 0 | F163: =IFERROR(VLOOKUP(A163,'[5]Seasoning Distribution'!$A$1:$C$11,3,FALSE),0) -> 0
A164: 07 to 12 months | B164: 07 to 12 months | E164: =F164/F$174 -> 0.2374555966 | F164: =IFERROR(VLOOKUP(A164,'[5]Seasoning Distribution'!$A$1:$C$11,3,FALSE),0) -> 98119479.87
A165: 13 to 18 months | B165: 13 to 18 months | E165: 0.3472620226 | F165: =IFERROR(VLOOKUP(A165,'[5]Seasoning Distribution'!$A$1:$C$11,3,FALSE),0) -> 143492802.6
A166: 19 to 24 months | B166: 19 to 24 months | E166: 0.2463876031 | F166: =IFERROR(VLOOKUP(A166,'[5]Seasoning Distribution'!$A$1:$C$11,3,FALSE),0) -> 101810291.3
A167: 25 to 30 months | B167: 25 to 30 months | E167: 0.1022653242 | F167: =IFERROR(VLOOKUP(A167,'[5]Seasoning Distribution'!$A$1:$C$11,3,FALSE),0) -> 42257249.61
A168: 31 to 36 months | B168: 31 to 36 months | E168: 0.02774877686 | F168: =IFERROR(VLOOKUP(A168,'[5]Seasoning Distribution'!$A$1:$C$11,3,FALSE),0) -> 11466125
A169: 37 to 42 months | B169: 37 to 42 months | E169: 0.01600145777 | F169: =IFERROR(VLOOKUP(A169,'[5]Seasoning Distribution'!$A$1:$C$11,3,FALSE),0) -> 6611992.88
A170: 43 to 48 months | B170: 43 to 48 months | E170: 0.003811643623 | F170: =IFERROR(VLOOKUP(A170,'[5]Seasoning Distribution'!$A$1:$C$11,3,FALSE),0) -> 1575016.53
A171: 49 to 54 months | B171: 49 to 54 months | E171: 0.01010252749 | F171: =IFERROR(VLOOKUP(A171,'[5]Seasoning Distribution'!$A$1:$C$11,3,FALSE),0) -> 4174484.65
A172: 55 to 60 months | B172: 55 to 60 months | E172: 0.008008866745 | F172: =IFERROR(VLOOKUP(A172,'[5]Seasoning Distribution'!$A$1:$C$11,3,FALSE),0) -> 3309359.1
A173: 60+ months | B173: 61 to 72 months | E173: 0.0009561810862 | F173: =IFERROR(VLOOKUP(A173,'[5]Seasoning Distribution'!$A$1:$C$11,3,FALSE),0) -> 395105.41
A174: 61 to 72 months | B174: Total | E174: =SUM(E163:E173) -> 1 | F174: =SUM(F163:F173) -> 413211906.9 | G174: =F160-F174 -> 0
B176: Remaining Term Distribution
A177: 0 - 12 months | B177: 0-12 Months | E177: =F177/$F$183 -> 0.04639543271 | F177: =IFERROR(VLOOKUP(A177,'[5]Remaining Term'!$A$1:$C$7,3,FALSE),0) -> 19171145.22
A178: 13 - 24 months | B178: 13-24 Months | E178: =F178/$F$183 -> 0.1472166778 | F178: =IFERROR(VLOOKUP(A178,'[5]Remaining Term'!$A$1:$C$7,3,FALSE),0) -> 60831684.17
A179: 25 - 36 months | B179: 25-36 Months | E179: 0.2398999811 | F179: =IFERROR(VLOOKUP(A179,'[5]Remaining Term'!$A$1:$C$7,3,FALSE),0) -> 99129528.66
A180: 37 - 48 months | B180: 37-48 Months | E180: 0.4170755636 | F180: =IFERROR(VLOOKUP(A180,'[5]Remaining Term'!$A$1:$C$7,3,FALSE),0) -> 172340589
A181: 49 - 60 months | B181: 49-60 Months | E181: 0.1485629116 | F181: =IFERROR(VLOOKUP(A181,'[5]Remaining Term'!$A$1:$C$7,3,FALSE),0) -> 61387963.99
A182: 60+ Months | B182: 60+ Months | E182: 0.0008494331459 | F182: =IFERROR(VLOOKUP(A182,'[5]Remaining Term'!$A$1:$C$7,3,FALSE),0) -> 350995.89
E183: =SUM(E177:E182) -> 1 | F183: =SUM(F177:F182) -> 413211906.9 | G183: =F174-F183 -> 0
B185: Origination LVR Distribution
A186: 01. 10% to 20% | B186: 10% to 20% | E186: =F186/F$202 -> 4.93833301e-05 | F186: =IFERROR(VLOOKUP(A186,'[5]LVR Band'!$A$1:$C$11,3,FALSE),0) -> 20405.78
A187: 02. 21% to 30% | B187: 21% to 30% | E187: 0.004684865798 | F187: =IFERROR(VLOOKUP(A187,'[5]LVR Band'!$A$1:$C$11,3,FALSE),0) -> 1935842.33
A188: 03. 31% to 40% | B188: 31% to 40% | E188: 0.02931032704 | F188: =IFERROR(VLOOKUP(A188,'[5]LVR Band'!$A$1:$C$11,3,FALSE),0) -> 12111376.13
A189: 04. 41% to 50% | B189: 41% to 50% | E189: 0.07967888751 | F189: =IFERROR(VLOOKUP(A189,'[5]LVR Band'!$A$1:$C$11,3,FALSE),0) -> 32924265.05
A190: 05. 51% to 60% | B190: 51% to 60% | E190: 0.1501788427 | F190: =IFERROR(VLOOKUP(A190,'[5]LVR Band'!$A$1:$C$11,3,FALSE),0) -> 62055685.97
A191: 06. 61% to 70% | B191: 61% to 70% | E191: 0.1724969671 | F191: =IFERROR(VLOOKUP(A191,'[5]LVR Band'!$A$1:$C$11,3,FALSE),0) -> 71277800.73
A192: 07. 71% to 80% | B192: 71% to 80% | E192: 0.1933851325 | F192: =IFERROR(VLOOKUP(A192,'[5]LVR Band'!$A$1:$C$11,3,FALSE),0) -> 79909039.36
A193: 08. 81% to 90% | B193: 81% to 90% | E193: 0.2228608002 | F193: =IFERROR(VLOOKUP(A193,'[5]LVR Band'!$A$1:$C$11,3,FALSE),0) -> 92088736.22
A194: 09. 91% to 100% | B194: 91% to 100% | E194: 0.1473547938 | F194: =IFERROR(VLOOKUP(A194,'[5]LVR Band'!$A$1:$C$11,3,FALSE),0) -> 60888755.34
A195: > 100% | B195: > 100% | E195: 0 | F195: =IFERROR(VLOOKUP(A195,'[5]LVR Band'!$A$1:$C$11,3,FALSE),0) -> 0
E196: =SUM(E186:E195) -> 1 | F196: =SUM(F186:F195) -> 413211906.9 | G196: =F183-F196 -> 0
B198: New v Used
A199: New | B199: New | E199: =F199/F$202 -> 0.9486824561 | F199: =IFERROR(VLOOKUP($A$199,'[5]New v Used'!$A$1:$C$4,3,FALSE),0) -> 392006886.7
A200: USed | B200: Used | E200: =F200/F$202 -> 0.05131754389 | F200: =IFERROR(VLOOKUP($A$200,'[5]New v Used'!$A$1:$C$4,3,FALSE),0) -> 21205020.17
A201: Used
E202: =SUM(E199:E200) -> 1 | F202: =SUM(F199:F200) -> 413211906.9 | G202: =F196-F202 -> -6.556510925e-07
B204: Contract Type
A205: Finance Lease | B205: Finance Lease | E205: =F205/F$208 -> 0.0127812331 | F205: =IFERROR(VLOOKUP(A205,'[5]Loan Type'!$A$1:$C$4,3,FALSE),0) -> 5281357.7
A206: Goods Mortgage | B206: Goods Mortgage | E206: =F206/F$208 -> 0.9872187669 | F206: =IFERROR(VLOOKUP(A206,'[5]Loan Type'!$A$1:$C$4,3,FALSE),0) -> 407930549.2
A207: Hire Purchase | B207: Hire Purchase | E207: 0 | F207: =IFERROR(VLOOKUP(A207,'[5]Loan Type'!$A$1:$C$4,3,FALSE),0) -> 0
E208: =SUM(E205:E207) -> 1 | F208: =SUM(F205:F207) -> 413211906.9 | G208: =F202-F208 -> 0
B210: Contract by Source
A211: Non Hardship Refinance | B211: Non Hardship Refinance | E211: =F211/F$213 -> 0.9958751131 | F211: =VLOOKUP($A$211,'[5]Refinance vs Hardship'!$A$1:$C$3,3,FALSE) -> 411507454.5
A212: Refinance - Hardship | B212: Hardship Refinance | E212: =F212/F$213 -> 0.004124886896 | F212: =VLOOKUP($A$212,[5]Source!$A$1:$C$228,3,FALSE) -> 1704452.38
E213: =SUM(E211:E212) -> 1 | F213: =SUM(F211:F212) -> 413211906.9 | G213: =F208-F213 -> 0
B215: Payment Frequency Distribution
A216: 6 Consecutive | B216: 6 Consecutive | E216: =F216/F$222 -> 0.005315294897 | F216: =IFERROR(VLOOKUP(A216,'[5]Payment Frequency'!$A$1:$C$8,3,FALSE),0) -> 2196343.14
... 24 more rows
